[Event "Early-Titled-Tuesday-Blitz-January-16-2024"]
[Site "Chess.com"]
[Date "2024.01.16"]
[Round "2"]
[White "giomar27"]
[Black "DreamsAreFake"]
[Result "0-1"]
[WhiteElo "2422"]
[BlackElo "2744"]
[TimeControl "180+1"]
[EndTime "8:17:38 PST"]
[Termination "DreamsAreFake won by resignation"]

1. d4 {[%clk 0:03:00.9]} 1... Nf6 {[%clk 0:02:59]} 2. Nc3 {[%clk 0:03:01.5]}
2... d5 {[%clk 0:02:57.9]} 3. Bf4 {[%clk 0:03:01.8]} 3... g6 {[%clk 0:02:57.2]}
4. e3 {[%clk 0:03:01.7]} 4... c6 {[%clk 0:02:56.6]} 5. h4 {[%clk 0:02:54.7]}
5... Bg7 {[%clk 0:02:55.5]} 6. Be2 {[%clk 0:02:52.6]} 6... h5 {[%clk 0:02:54.7]}
7. Nf3 {[%clk 0:02:51.8]} 7... O-O {[%clk 0:02:53.6]} 8. Ne5 {[%clk 0:02:49.7]}
8... Bf5 {[%clk 0:02:53.8]} 9. O-O {[%clk 0:02:45]} 9... Nbd7 {[%clk 0:02:53]}
10. Qd2 {[%clk 0:02:42.5]} 10... Ne4 {[%clk 0:02:44.5]} 11. Nxe4 {[%clk
0:02:41.4]} 11... Bxe4 {[%clk 0:02:45.4]} 12. Nxd7 {[%clk 0:02:39.9]} 12... Qxd7
{[%clk 0:02:45.5]} 13. Bd3 {[%clk 0:02:30.4]} 13... Bxd3 {[%clk 0:02:26.5]} 14.
cxd3 {[%clk 0:02:27.4]} 14... Qg4 {[%clk 0:02:23.6]} 15. g3 {[%clk 0:02:16.6]}
15... c5 {[%clk 0:02:10.1]} 16. f3 {[%clk 0:01:58.5]} 16... Qh3 {[%clk
0:02:05.9]} 17. Qf2 {[%clk 0:01:13.6]} 17... cxd4 {[%clk 0:02:04.7]} 18. exd4
{[%clk 0:01:13.7]} 18... Rac8 {[%clk 0:02:04.5]} 19. Rac1 {[%clk 0:01:11.9]}
19... Rxc1 {[%clk 0:02:04.4]} 20. Rxc1 {[%clk 0:01:12]} 20... Rc8 {[%clk
0:02:04.7]} 21. Rxc8+ {[%clk 0:01:03.8]} 21... Qxc8 {[%clk 0:02:05.6]} 22. Be5
{[%clk 0:00:58.3]} 22... Qc1+ {[%clk 0:02:04.2]} 23. Kg2 {[%clk 0:00:58.2]}
23... Bh6 {[%clk 0:01:46.9]} 24. f4 {[%clk 0:00:40.6]} 24... Qb1 {[%clk
0:01:46.4]} 25. Bb8 {[%clk 0:00:37.3]} 25... a6 {[%clk 0:01:38.9]} 26. a3 {[%clk
0:00:35.7]} 26... Qxd3 {[%clk 0:01:38.7]} 27. Ba7 {[%clk 0:00:33.7]} 27... e6
{[%clk 0:01:36.3]} 28. Bc5 {[%clk 0:00:33.2]} 28... Bg7 {[%clk 0:01:30.6]} 29.
Kh2 {[%clk 0:00:32.1]} 29... Qb3 {[%clk 0:01:29.6]} 30. Qe2 {[%clk 0:00:30.8]}
30... b6 {[%clk 0:01:28.2]} 31. Bd6 {[%clk 0:00:20.3]} 31... Bxd4 {[%clk
0:01:27.9]} 32. Be5 {[%clk 0:00:21.1]} 32... Qe3 {[%clk 0:01:03.8]} 33. Qxa6
{[%clk 0:00:13]} 33... Qg1+ {[%clk 0:01:02.1]} 0-1

[Event "Early-Titled-Tuesday-Blitz-January-16-2024"]
[Site "Chess.com"]
[Date "2024.01.16"]
[Round "2"]
[White "semchik73"]
[Black "KarolKacprzak"]
[Result "0-1"]
[WhiteElo "2392"]
[BlackElo "2740"]
[TimeControl "180+1"]
[EndTime "8:17:39 PST"]
[Termination "KarolKacprzak won by resignation"]

1. Nf3 {[%clk 0:03:00.3]} 1... c5 {[%clk 0:02:57.7]} 2. c4 {[%clk 0:03:00.4]}
2... g6 {[%clk 0:02:56.2]} 3. e3 {[%clk 0:03:00.7]} 3... Bg7 {[%clk 0:02:55.9]}
4. d4 {[%clk 0:03:01.3]} 4... cxd4 {[%clk 0:02:54.7]} 5. exd4 {[%clk 0:03:01.7]}
5... d5 {[%clk 0:02:55.1]} 6. Nc3 {[%clk 0:02:59]} 6... Nf6 {[%clk 0:02:55.7]}
7. c5 {[%clk 0:02:57.8]} 7... O-O {[%clk 0:02:46]} 8. Be2 {[%clk 0:02:57.7]}
8... Nc6 {[%clk 0:02:46]} 9. O-O {[%clk 0:02:56.5]} 9... b6 {[%clk 0:02:30.9]}
10. cxb6 {[%clk 0:02:53.3]} 10... Qxb6 {[%clk 0:02:31.8]} 11. Na4 {[%clk
0:02:53.1]} 11... Qd8 {[%clk 0:02:24]} 12. Bf4 {[%clk 0:02:50.4]} 12... Bg4
{[%clk 0:02:15.3]} 13. Rc1 {[%clk 0:02:49.8]} 13... Rc8 {[%clk 0:02:02.5]} 14.
h3 {[%clk 0:02:48.6]} 14... Bxf3 {[%clk 0:02:00.9]} 15. Bxf3 {[%clk 0:02:48.8]}
15... Ne4 {[%clk 0:01:59.6]} 16. Bxe4 {[%clk 0:02:41.2]} 16... dxe4 {[%clk
0:02:00.5]} 17. d5 {[%clk 0:02:41.2]} 17... Nb4 {[%clk 0:01:56.2]} 18. Rxc8
{[%clk 0:02:41]} 18... Qxc8 {[%clk 0:01:57.1]} 19. Qb3 {[%clk 0:02:40.1]} 19...
Nd3 {[%clk 0:01:52.5]} 20. Be3 {[%clk 0:02:39.8]} 20... Qc7 {[%clk 0:01:45]} 21.
Nc3 {[%clk 0:02:21.3]} 21... Rb8 {[%clk 0:01:39.4]} 22. Qa3 {[%clk 0:02:19.3]}
22... f5 {[%clk 0:01:27.6]} 23. Na4 {[%clk 0:02:03.2]} 23... Rb5 {[%clk
0:01:15.1]} 24. b3 {[%clk 0:01:52]} 24... Rxd5 {[%clk 0:01:13.2]} 25. Bg5 {[%clk
0:01:35.3]} 25... e6 {[%clk 0:00:52.9]} 26. f3 {[%clk 0:01:31.1]} 26... f4
{[%clk 0:00:46.2]} 27. Be7 {[%clk 0:00:44.1]} 27... e3 {[%clk 0:00:45]} 28. Rb1
{[%clk 0:00:27.5]} 28... e2 {[%clk 0:00:42.7]} 29. Kh2 {[%clk 0:00:20.7]} 29...
e1=Q {[%clk 0:00:41.7]} 30. Rxe1 {[%clk 0:00:21]} 30... Nxe1 {[%clk 0:00:42.6]}
31. Bb4 {[%clk 0:00:13.8]} 31... Nxf3+ {[%clk 0:00:41.8]} 32. gxf3 {[%clk
0:00:13.8]} 32... Qc2+ {[%clk 0:00:42.1]} 33. Kg1 {[%clk 0:00:13.8]} 33... Rd1+
{[%clk 0:00:43]} 0-1

[Event "Early-Titled-Tuesday-Blitz-January-16-2024"]
[Site "Chess.com"]
[Date "2024.01.16"]
[Round "2"]
[White "kai_nov"]
[Black "AsterPhoenix"]
[Result "0-1"]
[WhiteElo "2331"]
[BlackElo "2570"]
[TimeControl "180+1"]
[EndTime "8:17:42 PST"]
[Termination "AsterPhoenix won by checkmate"]

1. d4 {[%clk 0:03:00.1]} 1... Nf6 {[%clk 0:02:58.8]} 2. Nc3 {[%clk 0:02:57.2]}
2... d5 {[%clk 0:02:57.6]} 3. Bg5 {[%clk 0:02:52.6]} 3... c5 {[%clk 0:02:46.7]}
4. dxc5 {[%clk 0:02:46.6]} 4... d4 {[%clk 0:02:44.4]} 5. Bxf6 {[%clk 0:02:46.3]}
5... exf6 {[%clk 0:02:25.6]} 6. Ne4 {[%clk 0:02:45.7]} 6... Qd5 {[%clk
0:02:21.5]} 7. Ng3 {[%clk 0:02:40]} 7... Bxc5 {[%clk 0:02:17.4]} 8. e4 {[%clk
0:02:32.1]} 8... Qe6 {[%clk 0:01:55]} 9. Bb5+ {[%clk 0:02:26.2]} 9... Bd7 {[%clk
0:01:49]} 10. Bxd7+ {[%clk 0:02:24.6]} 10... Nxd7 {[%clk 0:01:49.9]} 11. N1e2
{[%clk 0:02:16.9]} 11... Bb4+ {[%clk 0:01:34.6]} 12. c3 {[%clk 0:02:03]} 12...
dxc3 {[%clk 0:01:35.5]} 13. bxc3 {[%clk 0:02:02.1]} 13... Bc5 {[%clk 0:01:31.8]}
14. O-O {[%clk 0:02:01.4]} 14... O-O {[%clk 0:01:28.7]} 15. Qb3 {[%clk
0:01:59.5]} 15... Nb6 {[%clk 0:01:16.2]} 16. Nd4 {[%clk 0:01:53.5]} 16... Qc4
{[%clk 0:01:14]} 17. Ndf5 {[%clk 0:01:44.3]} 17... g6 {[%clk 0:01:04.2]} 18. Ne3
{[%clk 0:01:30.7]} 18... Bxe3 {[%clk 0:01:02.5]} 19. fxe3 {[%clk 0:01:30.5]}
19... Kg7 {[%clk 0:00:55.9]} 20. Rfd1 {[%clk 0:01:27.5]} 20... Rac8 {[%clk
0:00:53.1]} 21. Rac1 {[%clk 0:01:26.3]} 21... Qc5 {[%clk 0:00:45.8]} 22. c4
{[%clk 0:01:08.4]} 22... Rfd8 {[%clk 0:00:37.9]} 23. Rxd8 {[%clk 0:01:00.2]}
23... Rxd8 {[%clk 0:00:37.9]} 24. Ne2 {[%clk 0:00:48.1]} 24... Rd2 {[%clk
0:00:35.7]} 25. Nd4 {[%clk 0:00:42.4]} 25... Qg5 {[%clk 0:00:35.3]} 26. g3
{[%clk 0:00:38.9]} 26... Qh5 {[%clk 0:00:34.9]} 27. h4 {[%clk 0:00:16.1]} 27...
Qg4 {[%clk 0:00:34.5]} 28. Rc2 {[%clk 0:00:12.7]} 28... Qxg3+ {[%clk 0:00:33.5]}
29. Kf1 {[%clk 0:00:11.6]} 29... Qf2# {[%clk 0:00:33.3]} 0-1

[Event "Early-Titled-Tuesday-Blitz-January-16-2024"]
[Site "Chess.com"]
[Date "2024.01.16"]
[Round "2"]
[White "GMFYHR1"]
[Black "lilylg"]
[Result "1-0"]
[WhiteElo "2465"]
[BlackElo "2100"]
[TimeControl "180+1"]
[EndTime "8:17:42 PST"]
[Termination "GMFYHR1 won on time"]

1. d4 {[%clk 0:03:00.9]} 1... d5 {[%clk 0:02:57.5]} 2. c4 {[%clk 0:02:57.9]}
2... e6 {[%clk 0:02:57.9]} 3. cxd5 {[%clk 0:02:57.4]} 3... exd5 {[%clk
0:02:57.3]} 4. Nc3 {[%clk 0:02:58.1]} 4... Nf6 {[%clk 0:02:56.6]} 5. Bg5 {[%clk
0:02:57.8]} 5... c6 {[%clk 0:02:56]} 6. Qc2 {[%clk 0:02:57.4]} 6... g6 {[%clk
0:02:56.5]} 7. e3 {[%clk 0:02:56.5]} 7... Bg7 {[%clk 0:02:57.1]} 8. Bd3 {[%clk
0:02:56.8]} 8... O-O {[%clk 0:02:57.6]} 9. Nge2 {[%clk 0:02:57]} 9... Re8 {[%clk
0:02:39]} 10. O-O {[%clk 0:02:56.5]} 10... Nbd7 {[%clk 0:02:28.7]} 11. Bf4
{[%clk 0:02:23.4]} 11... Nf8 {[%clk 0:02:27.7]} 12. f3 {[%clk 0:02:22.8]} 12...
Ne6 {[%clk 0:02:27.7]} 13. Be5 {[%clk 0:02:20.7]} 13... b6 {[%clk 0:02:26.9]}
14. e4 {[%clk 0:02:19.8]} 14... Bb7 {[%clk 0:02:26.9]} 15. Rad1 {[%clk
0:02:17.3]} 15... Rc8 {[%clk 0:02:26.1]} 16. Qa4 {[%clk 0:02:16.9]} 16... Re7
{[%clk 0:02:00.7]} 17. Bxf6 {[%clk 0:02:12.2]} 17... Bxf6 {[%clk 0:01:59.9]} 18.
e5 {[%clk 0:02:12.9]} 18... Bg7 {[%clk 0:01:56.7]} 19. f4 {[%clk 0:02:13.6]}
19... c5 {[%clk 0:01:47]} 20. Ba6 {[%clk 0:02:05.1]} 20... Bc6 {[%clk
0:01:35.3]} 21. Bb5 {[%clk 0:02:03.1]} 21... Bxb5 {[%clk 0:01:10.6]} 22. Nxb5
{[%clk 0:02:00.7]} 22... Qd7 {[%clk 0:01:03.9]} 23. Qa6 {[%clk 0:01:47.5]} 23...
Nc7 {[%clk 0:00:59.5]} 24. Nxc7 {[%clk 0:01:42.5]} 24... Rxc7 {[%clk 0:00:57.6]}
25. Nc3 {[%clk 0:01:36.4]} 25... c4 {[%clk 0:00:38.7]} 26. Nb5 {[%clk
0:01:36.5]} 26... Rc6 {[%clk 0:00:39]} 27. Nd6 {[%clk 0:01:22.8]} 27... Rxd6
{[%clk 0:00:35.2]} 28. exd6 {[%clk 0:01:22.6]} 28... Qxd6 {[%clk 0:00:35.3]} 29.
Qc8+ {[%clk 0:01:23]} 29... Bf8 {[%clk 0:00:35]} 30. f5 {[%clk 0:01:22.7]} 30...
Rc7 {[%clk 0:00:30.5]} 31. Qa8 {[%clk 0:01:17.9]} 31... Qd7 {[%clk 0:00:24.9]}
32. Qb8 {[%clk 0:01:09.1]} 32... Kg7 {[%clk 0:00:07]} 33. f6+ {[%clk 0:01:06.8]}
33... Kg8 {[%clk 0:00:07.4]} 34. Rde1 {[%clk 0:01:07.4]} 34... Qc8 {[%clk
0:00:07.5]} 35. Re8 {[%clk 0:01:06.1]} 35... Qxb8 {[%clk 0:00:07.4]} 36. Rxb8
{[%clk 0:01:06.8]} 36... c3 {[%clk 0:00:04]} 37. bxc3 {[%clk 0:01:04.6]} 1-0

[Event "Early-Titled-Tuesday-Blitz-January-16-2024"]
[Site "Chess.com"]
[Date "2024.01.16"]
[Round "2"]
[White "nickmatta"]
[Black "Witty_Alien"]
[Result "1-0"]
[WhiteElo "2577"]
[BlackElo "2338"]
[TimeControl "180+1"]
[EndTime "8:17:43 PST"]
[Termination "nickmatta won by resignation"]

1. Nf3 {[%clk 0:03:00.9]} 1... Nf6 {[%clk 0:02:58.8]} 2. g3 {[%clk 0:03:00.7]}
2... g6 {[%clk 0:02:58.9]} 3. b3 {[%clk 0:03:00.8]} 3... Bg7 {[%clk 0:02:58.7]}
4. Bb2 {[%clk 0:03:01.7]} 4... a5 {[%clk 0:02:59]} 5. Bg2 {[%clk 0:02:57.4]}
5... a4 {[%clk 0:02:59.2]} 6. O-O {[%clk 0:02:57.6]} 6... O-O {[%clk 0:02:52.6]}
7. c4 {[%clk 0:02:57.3]} 7... d5 {[%clk 0:02:29.9]} 8. cxd5 {[%clk 0:02:55.5]}
8... Qxd5 {[%clk 0:02:26.4]} 9. Nc3 {[%clk 0:02:55.2]} 9... Qh5 {[%clk 0:02:23]}
10. Nxa4 {[%clk 0:02:55.3]} 10... Bh3 {[%clk 0:02:23.5]} 11. Rc1 {[%clk
0:02:47.2]} 11... Nc6 {[%clk 0:02:21.3]} 12. Rc5 {[%clk 0:02:45.8]} 12... Qh6
{[%clk 0:01:51.9]} 13. d3 {[%clk 0:02:37.9]} 13... Bxg2 {[%clk 0:01:49.4]} 14.
Kxg2 {[%clk 0:02:38.8]} 14... Bh8 {[%clk 0:00:44.2]} 15. Qc1 {[%clk 0:02:25.2]}
15... Qg7 {[%clk 0:00:36.7]} 16. g4 {[%clk 0:02:22.8]} 16... h6 {[%clk
0:00:35.4]} 17. h4 {[%clk 0:02:22.3]} 17... Qh7 {[%clk 0:00:34.9]} 18. Bxf6
{[%clk 0:02:05.7]} 18... exf6 {[%clk 0:00:27.5]} 19. Nc3 {[%clk 0:02:00.6]}
19... Ra5 {[%clk 0:00:21.1]} 20. Nd5 {[%clk 0:01:59.1]} 20... Rxa2 {[%clk
0:00:16.4]} 21. g5 {[%clk 0:01:54.9]} 21... hxg5 {[%clk 0:00:16.2]} 22. hxg5
{[%clk 0:01:53.7]} 22... Qh5 {[%clk 0:00:16.3]} 23. Qf4 {[%clk 0:01:50.8]} 23...
fxg5 {[%clk 0:00:06.4]} 24. Nxg5 {[%clk 0:01:51.7]} 24... Be5 {[%clk 0:00:04.2]}
25. Ne7+ {[%clk 0:01:44.1]} 25... Kg7 {[%clk 0:00:02.7]} 26. Rxe5 {[%clk
0:01:42]} 26... Nxe5 {[%clk 0:00:01.3]} 27. Qxe5+ {[%clk 0:01:42.7]} 27... f6
{[%clk 0:00:01.8]} 28. Ne6+ {[%clk 0:01:42.4]} 28... Kf7 {[%clk 0:00:02.5]} 29.
Qxh5 {[%clk 0:01:43]} 29... gxh5 {[%clk 0:00:02.9]} 30. Nxf8 {[%clk 0:01:43.9]}
30... Kxe7 {[%clk 0:00:02.9]} 31. Ng6+ {[%clk 0:01:43.9]} 31... Kf7 {[%clk
0:00:03.6]} 32. Nf4 {[%clk 0:01:44.8]} 32... Rb2 {[%clk 0:00:01.6]} 33. Rc1
{[%clk 0:01:44.5]} 33... c6 {[%clk 0:00:01.5]} 34. Rc3 {[%clk 0:01:44.7]} 34...
h4 {[%clk 0:00:01.4]} 35. Kh3 {[%clk 0:01:44.3]} 35... Ke7 {[%clk 0:00:02]} 36.
Kxh4 {[%clk 0:01:44.7]} 36... Kd6 {[%clk 0:00:02]} 37. d4 {[%clk 0:01:43.9]}
37... b5 {[%clk 0:00:01.7]} 38. Kg3 {[%clk 0:01:38.1]} 38... b4 {[%clk
0:00:02.1]} 39. Re3 {[%clk 0:01:37.2]} 39... f5 {[%clk 0:00:02.6]} 40. Re6+
{[%clk 0:01:36.6]} 40... Kd7 {[%clk 0:00:02.9]} 41. Re3 {[%clk 0:01:37.1]} 41...
Kd6 {[%clk 0:00:03.4]} 42. Rd3 {[%clk 0:01:34.3]} 42... c5 {[%clk 0:00:02.2]}
43. dxc5+ {[%clk 0:01:33.4]} 43... Kxc5 {[%clk 0:00:03.1]} 44. e3 {[%clk
0:01:32.5]} 44... Rc2 {[%clk 0:00:02.5]} 45. Nd5 {[%clk 0:01:31.1]} 45... Rb2
{[%clk 0:00:01.3]} 46. Ne7 {[%clk 0:01:30.7]} 46... f4+ {[%clk 0:00:01.3]} 47.
exf4 {[%clk 0:01:30.3]} 47... Rc2 {[%clk 0:00:01.8]} 48. Nd5 {[%clk 0:01:27.5]}
48... Kd6 {[%clk 0:00:02.4]} 49. Nxb4+ {[%clk 0:01:27.3]} 49... Ke6 {[%clk
0:00:03]} 50. Nxc2 {[%clk 0:01:28.2]} 50... Kf5 {[%clk 0:00:03.9]} 51. Ne3+
{[%clk 0:01:28.2]} 51... Ke4 {[%clk 0:00:04]} 52. f5 {[%clk 0:01:25.6]} 1-0

[Event "Early-Titled-Tuesday-Blitz-January-16-2024"]
[Site "Chess.com"]
[Date "2024.01.16"]
[Round "2"]
[White "GiorgianBarbosa"]
[Black "Ducke13"]
[Result "1-0"]
[WhiteElo "2602"]
[BlackElo "2351"]
[TimeControl "180+1"]
[EndTime "8:17:44 PST"]
[Termination "GiorgianBarbosa won by checkmate"]

1. e4 {[%clk 0:03:00.9]} 1... c5 {[%clk 0:02:59.4]} 2. Nf3 {[%clk 0:03:00.4]}
2... d6 {[%clk 0:02:59.8]} 3. d4 {[%clk 0:02:59.8]} 3... cxd4 {[%clk 0:03:00.7]}
4. Nxd4 {[%clk 0:03:00.3]} 4... Nf6 {[%clk 0:02:59.7]} 5. Nc3 {[%clk 0:03:00.9]}
5... a6 {[%clk 0:03:00]} 6. Rg1 {[%clk 0:02:59.7]} 6... e5 {[%clk 0:02:58.4]} 7.
Nb3 {[%clk 0:02:59.5]} 7... h5 {[%clk 0:02:50.5]} 8. Be3 {[%clk 0:02:46.6]} 8...
Be6 {[%clk 0:02:49.2]} 9. Qd2 {[%clk 0:02:44.2]} 9... Nbd7 {[%clk 0:02:43.3]}
10. f3 {[%clk 0:02:39.6]} 10... Rc8 {[%clk 0:02:40.5]} 11. O-O-O {[%clk
0:02:38.8]} 11... b5 {[%clk 0:02:36.1]} 12. Kb1 {[%clk 0:02:37.4]} 12... Qc7
{[%clk 0:02:30.8]} 13. Bd3 {[%clk 0:02:03.9]} 13... Be7 {[%clk 0:02:12.7]} 14.
h3 {[%clk 0:01:50.5]} 14... h4 {[%clk 0:02:11.5]} 15. f4 {[%clk 0:01:50.9]}
15... exf4 {[%clk 0:02:07.7]} 16. Bxf4 {[%clk 0:01:51.8]} 16... Ne5 {[%clk
0:02:07]} 17. Nd5 {[%clk 0:01:28.9]} 17... Bxd5 {[%clk 0:01:51.5]} 18. exd5
{[%clk 0:01:29.8]} 18... Nfd7 {[%clk 0:01:39.9]} 19. Bf5 {[%clk 0:01:26.2]}
19... g6 {[%clk 0:01:38.3]} 20. Bxe5 {[%clk 0:01:25.1]} 20... Nxe5 {[%clk
0:01:15]} 21. Bxc8 {[%clk 0:01:26]} 21... Qxc8 {[%clk 0:01:15.7]} 22. Rge1
{[%clk 0:01:17.2]} 22... Bf6 {[%clk 0:01:01.2]} 23. Nd4 {[%clk 0:01:07.9]} 23...
Qc5 {[%clk 0:00:47.6]} 24. Nc6 {[%clk 0:00:59.8]} 24... O-O {[%clk 0:00:43.3]}
25. Nxe5 {[%clk 0:00:58.9]} 25... Bxe5 {[%clk 0:00:44.2]} 26. Re4 {[%clk
0:00:53.7]} 26... Bf6 {[%clk 0:00:36.9]} 27. Rf1 {[%clk 0:00:50.3]} 27... Kg7
{[%clk 0:00:19.3]} 28. Ref4 {[%clk 0:00:35.2]} 28... Be5 {[%clk 0:00:17.9]} 29.
Rxh4 {[%clk 0:00:33.9]} 29... Rc8 {[%clk 0:00:18]} 30. Qh6+ {[%clk 0:00:31.1]}
30... Kg8 {[%clk 0:00:18.4]} 31. Qh7+ {[%clk 0:00:31.5]} 31... Kf8 {[%clk
0:00:18.9]} 32. Qxf7# {[%clk 0:00:32.1]} 1-0

[Event "Early-Titled-Tuesday-Blitz-January-16-2024"]
[Site "Chess.com"]
[Date "2024.01.16"]
[Round "2"]
[White "KNCP_719"]
[Black "Anton_Demchenko"]
[Result "0-1"]
[WhiteElo "2621"]
[BlackElo "2980"]
[TimeControl "180+1"]
[EndTime "8:17:52 PST"]
[Termination "Anton_Demchenko won by resignation"]

1. e4 {[%clk 0:03:00.9]} 1... e5 {[%clk 0:02:59.9]} 2. Nf3 {[%clk 0:03:01.1]}
2... Nc6 {[%clk 0:03:00.6]} 3. Bb5 {[%clk 0:03:01.8]} 3... a6 {[%clk 0:03:00.9]}
4. Ba4 {[%clk 0:03:02.2]} 4... Nge7 {[%clk 0:03:00.1]} 5. O-O {[%clk 0:02:58.5]}
5... Ng6 {[%clk 0:03:00]} 6. Re1 {[%clk 0:02:58.7]} 6... Be7 {[%clk 0:02:59.2]}
7. c3 {[%clk 0:02:59.3]} 7... d6 {[%clk 0:02:59.3]} 8. d4 {[%clk 0:02:59.9]}
8... Bd7 {[%clk 0:02:59.9]} 9. Be3 {[%clk 0:02:58.1]} 9... O-O {[%clk
0:03:00.2]} 10. Nbd2 {[%clk 0:02:57.7]} 10... b5 {[%clk 0:03:00.5]} 11. Bb3
{[%clk 0:02:57.7]} 11... exd4 {[%clk 0:03:01.2]} 12. cxd4 {[%clk 0:02:57.7]}
12... Na5 {[%clk 0:03:01.9]} 13. h3 {[%clk 0:02:50]} 13... Nxb3 {[%clk
0:02:48.2]} 14. axb3 {[%clk 0:02:44.9]} 14... f5 {[%clk 0:02:43]} 15. exf5
{[%clk 0:02:32.6]} 15... Bxf5 {[%clk 0:02:43.6]} 16. d5 {[%clk 0:02:25.1]} 16...
Bf6 {[%clk 0:02:37.1]} 17. Nd4 {[%clk 0:02:22.8]} 17... Bxd4 {[%clk 0:02:25.2]}
18. Bxd4 {[%clk 0:02:23.1]} 18... Nf4 {[%clk 0:02:24.2]} 19. Nf3 {[%clk
0:02:11.8]} 19... Bg6 {[%clk 0:02:03.4]} 20. Bc3 {[%clk 0:01:41.6]} 20... Rf5
{[%clk 0:01:37.5]} 21. Nd4 {[%clk 0:01:11.4]} 21... Qg5 {[%clk 0:00:49.9]} 22.
Qg4 {[%clk 0:00:59.6]} 22... Qxg4 {[%clk 0:00:45.4]} 23. hxg4 {[%clk 0:01:00.5]}
23... Rxd5 {[%clk 0:00:45.9]} 24. Re7 {[%clk 0:00:53.5]} 24... b4 {[%clk
0:00:41.2]} 25. Bd2 {[%clk 0:00:08.2]} 25... Rxd4 {[%clk 0:00:39.5]} 26. Be3
{[%clk 0:00:08.8]} 26... Nd5 {[%clk 0:00:40.1]} 27. Rxg7+ {[%clk 0:00:03]} 27...
Kxg7 {[%clk 0:00:39.8]} 28. Bxd4+ {[%clk 0:00:03.9]} 28... Kf7 {[%clk
0:00:36.7]} 29. g3 {[%clk 0:00:04.1]} 29... c5 {[%clk 0:00:36.2]} 0-1

[Event "Early-Titled-Tuesday-Blitz-January-16-2024"]
[Site "Chess.com"]
[Date "2024.01.16"]
[Round "2"]
[White "HajiyevKanan"]
[Black "Maftuna2303"]
[Result "1-0"]
[WhiteElo "2564"]
[BlackElo "2328"]
[TimeControl "180+1"]
[EndTime "8:17:52 PST"]
[Termination "HajiyevKanan won by resignation"]

1. d4 {[%clk 0:03:00.9]} 1... Nf6 {[%clk 0:02:59.8]} 2. Nf3 {[%clk 0:03:01.5]}
2... e6 {[%clk 0:02:59.2]} 3. c4 {[%clk 0:03:01.8]} 3... b6 {[%clk 0:02:55.2]}
4. g3 {[%clk 0:03:02]} 4... Bb7 {[%clk 0:02:54.4]} 5. Bg2 {[%clk 0:03:02.6]}
5... c5 {[%clk 0:02:54]} 6. O-O {[%clk 0:03:02.3]} 6... Be7 {[%clk 0:02:53]} 7.
dxc5 {[%clk 0:03:01.3]} 7... bxc5 {[%clk 0:02:52.5]} 8. b3 {[%clk 0:03:02]} 8...
O-O {[%clk 0:02:52]} 9. Bb2 {[%clk 0:03:02.6]} 9... d5 {[%clk 0:02:49.6]} 10.
cxd5 {[%clk 0:03:02.7]} 10... exd5 {[%clk 0:02:49.2]} 11. Nc3 {[%clk 0:03:02.9]}
11... Nbd7 {[%clk 0:02:46]} 12. Rc1 {[%clk 0:03:02.2]} 12... Rc8 {[%clk
0:02:45.9]} 13. Na4 {[%clk 0:03:02.4]} 13... d4 {[%clk 0:02:34.4]} 14. Ba3
{[%clk 0:03:00.6]} 14... Qa5 {[%clk 0:02:30.6]} 15. Qd2 {[%clk 0:02:59]} 15...
Qxd2 {[%clk 0:02:24.5]} 16. Nxd2 {[%clk 0:02:58.2]} 16... Bxg2 {[%clk
0:02:24.9]} 17. Kxg2 {[%clk 0:02:59.1]} 17... Nd5 {[%clk 0:02:20]} 18. Ne4
{[%clk 0:02:54]} 18... Nb4 {[%clk 0:02:08.5]} 19. Bxb4 {[%clk 0:02:41.2]} 19...
cxb4 {[%clk 0:02:07.5]} 20. Rfd1 {[%clk 0:02:41.4]} 20... Rxc1 {[%clk
0:01:55.1]} 21. Rxc1 {[%clk 0:02:42.3]} 21... Nb6 {[%clk 0:01:46.5]} 22. Nxb6
{[%clk 0:02:34.4]} 22... axb6 {[%clk 0:01:46.2]} 23. Rc7 {[%clk 0:02:27.6]}
23... Re8 {[%clk 0:01:34.4]} 24. Rd7 {[%clk 0:02:23.6]} 24... Bc5 {[%clk
0:01:19]} 25. Kf3 {[%clk 0:02:13.9]} 25... f6 {[%clk 0:01:10.4]} 26. Rc7 {[%clk
0:01:56.4]} 26... Ra8 {[%clk 0:01:08.5]} 27. Nxc5 {[%clk 0:01:52.7]} 27... bxc5
{[%clk 0:01:08.1]} 28. Rxc5 {[%clk 0:01:53.6]} 28... Rxa2 {[%clk 0:01:08.1]} 29.
Rc4 {[%clk 0:01:53.8]} 29... Rb2 {[%clk 0:01:03.6]} 30. Rxb4 {[%clk 0:01:52.7]}
30... Kf7 {[%clk 0:01:03.7]} 31. Rb7+ {[%clk 0:01:52.1]} 31... Kg6 {[%clk
0:01:03.5]} 32. h4 {[%clk 0:01:52.1]} 32... h5 {[%clk 0:01:01]} 33. b4 {[%clk
0:01:48.1]} 33... Kf5 {[%clk 0:00:54.9]} 34. Rb5+ {[%clk 0:01:41.1]} 34... Ke6
{[%clk 0:00:52.2]} 35. Rb7 {[%clk 0:01:32.6]} 35... g6 {[%clk 0:00:50.4]} 36. b5
{[%clk 0:01:32.7]} 36... Kd5 {[%clk 0:00:46.4]} 37. b6 {[%clk 0:01:31.5]} 37...
Rb3+ {[%clk 0:00:44.6]} 38. Kg2 {[%clk 0:01:28.2]} 38... Ke6 {[%clk 0:00:42.9]}
39. Rb8 {[%clk 0:01:26.1]} 39... Kf7 {[%clk 0:00:41.2]} 40. b7 {[%clk 0:01:25]}
40... Kg7 {[%clk 0:00:37.2]} 41. Kf1 {[%clk 0:01:22.5]} 41... Rb1+ {[%clk
0:00:30.7]} 42. Kg2 {[%clk 0:01:22.9]} 42... Rb3 {[%clk 0:00:30.1]} 43. Kg1
{[%clk 0:01:22.1]} 43... Rb1+ {[%clk 0:00:29.9]} 44. Kh2 {[%clk 0:01:20.4]}
44... Rb3 {[%clk 0:00:29.8]} 45. Kg2 {[%clk 0:01:20.3]} 45... Kf7 {[%clk
0:00:28.4]} 46. Rh8 {[%clk 0:01:19.7]} 46... Kg7 {[%clk 0:00:12.5]} 47. b8=Q
{[%clk 0:01:18]} 47... Rxb8 {[%clk 0:00:10.8]} 48. Rxb8 {[%clk 0:01:18.9]} 1-0